bitfinex/quotes_ETHUSD_20240719
["timestamp","ask_amount","ask_price","bid_price","bid_amount"]
[1721428600076,2.2896,3520.0,3519.9,0.06382372]
[1721428600589,2.2896,3520.0,3519.7,2.55703]
[1721428600880,2.2896,3520.0,3519.9,0.06382372]
[1721428601086,2.2896,3520.0,3519.7,2.55703]
[1721428601284,2.2896,3520.0,3519.9,0.06382372]
[1721428601483,2.2896,3520.0,3519.8,0.06387464]
[1721428601685,2.2896,3520.0,3519.9,0.06382372]
[1721428601984,2.2896,3520.0,3519.7,2.55703]
[1721428602293,2.2896,3520.0,3519.5,2.55718]
[1721428602294,2.2896,3520.0,3519.9,0.06383019]
[1721428602603,2.878923,3520.0,3519.9,0.06381729]
[1721428602805,2.878923,3520.0,3519.5,2.55718]
[1721428603102,4.047,3519.9,3519.5,2.55718]
[1721428603604,4.047,3519.9,3519.6,2.5571]
[1721428606512,4.047,3519.9,3519.7,2.55703]
[1721428606667,3.0,3519.9,3519.7,2.55703]
[1721428606864,4.047,3520.2,3519.7,2.55703]
[1721428610426,4.047,3520.2,3519.7,5.114]
[1721428610622,4.047,3520.2,3519.7,2.55697]
[1721428612986,4.047,3520.2,3519.8,2.55696]
[1721428613842,2.344,3520.6,3520.2,2.55662]
[1721428614127,3.391,3520.6,3520.2,2.55662]
[1721428614417,3.391,3520.6,3520.2,5.11324]
[1721428614624,3.391,3520.6,3520.3,0.0636251]
[1721428614827,1.047,3520.4,3520.3,0.0636251]
[1721428615183,1.047,3520.4,3520.3,2.5566]
[1721428615407,1.047,3520.4,3520.3,2.6202251]
[1721428615611,1.047,3520.4,3520.3,0.0636251]
[1721428615835,1.047,3520.4,3520.2,2.55665]
[1721428616117,1.047,3520.4,3520.3,0.0636251]
[1721428619436,4.047,3520.5,3520.3,2.6202151]
[1721428619656,1.047,3520.5,3520.4,2.55652]
[1721428619830,2.344,3520.8,3520.4,2.55652]
[1721428619831,2.344,3520.8,3520.4,0.06355769]
[1721428620003,2.344,3520.8,3520.2,5.11326]
[1721428620004,1.047,3520.6,3520.3,2.55659]
[1721428620195,1.047,3520.6,3520.5,0.06350679]
[1721428620410,1.047,3520.6,3520.3,2.55659]
[1721428620719,3.0,3520.7,3520.5,0.06350679]
[1721428621036,1.047,3520.6,3520.2,2.55661]
[1721428621206,1.047,3520.4,3520.2,2.55661]
[1721428622020,2.344,3520.3,3520.2,2.55661]
[1721428622232,2.344,3520.3,3520.0,2.5568]
[1721428622396,1.047,3520.1,3520.0,2.5568]
[1721428622898,3.391,3520.3,3520.0,2.5568]
[1721428623322,1.047,3520.3,3520.0,2.5568]
[1721428625034,1.047,3520.3,3520.2,2.55667]
[1721428626802,1.047,3520.3,3520.0,5.11356]
[1721428627002,1.047,3520.1,3520.0,2.55676]
[1721428629042,3.3936,3520.1,3519.8,2.55692]
[1721428629415,3.3936,3520.1,3519.9,2.55688]
[1721428629615,3.3936,3520.1,3519.9,2.62070732]
[1721428630640,5.55647,3520.5,3519.9,2.62070732]
[1721428630641,1.047,3520.3,3519.9,2.62070732]
[1721428630842,1.047,3520.3,3520.0,2.55681]
[1721428631000,1.047,3520.3,3520.0,2.6205864]
[1721428631430,3.0,3520.4,3520.2,2.55662]
[1721428631631,1.047,3520.6,3520.3,2.5566]
[1721428632035,1.047,3520.6,3520.3,2.62022367]
[1721428632754,1.047,3520.4,3520.3,0.06362367]
[1721428633122,1.047,3520.4,3520.2,2.55666]
[1721428633451,1.047,3520.4,3520.3,0.06362367]
[1721428633752,1.047,3520.5,3520.3,0.06362367]
[1721428636116,3.0,3520.7,3520.3,5.06660367]
[1721428636320,1.047,3520.7,3520.3,5.06660367]
[1721428636723,1.047,3520.7,3520.3,2.62020367]
[1721428640845,1.047,3520.5,3520.3,2.62020367]
[1721428641557,1.047,3520.5,3520.4,2.55652]
[1721428641966,1.047,3520.5,3520.4,2.62009276]
[1721428643620,0.44530207,3520.9,3520.4,2.62009276]
[1721428643902,1.047,3520.8,3520.4,2.62009276]
[1721428644065,3.0,3521.0,3520.7,2.55626]
[1721428644235,2.3466,3521.1,3520.7,2.55626]
[1721428644431,2.3466,3521.1,3520.8,0.06334336]
[1721428645522,1.047,3521.0,3520.8,0.06334336]
[1721428645732,3.0,3521.0,3520.8,2.61955336]
[1721428645924,5.2902,3521.3,3520.8,2.61955336]
[1721428646273,0.82912172,3521.2,3520.8,2.61955336]
[1721428646436,3.82912172,3521.2,3520.8,2.61955336]
[1721428646628,0.82912172,3521.2,3520.8,2.61955336]
[1721428646958,3.0,3521.2,3520.8,2.61955336]
[1721428647131,2.2902,3521.3,3520.8,2.61955336]
[1721428647963,1.047,3521.0,3520.8,2.61955336]
[1721428649357,1.047,3521.0,3520.8,0.06334336]
[1721428649787,1.047,3521.0,3520.6,2.55632]
[1721428649956,3.0,3521.2,3520.9,0.06329247]
[1721428650154,3.0,3521.2,3520.6,2.55632]
[1721428650155,1.040188,3521.1,3520.6,2.55632]
[1721428650451,1.047,3520.7,3520.6,2.55632]
[1721428652559,1.047,3520.9,3520.6,2.55632]
[1721428657707,1.047,3521.1,3520.6,2.55632]
[1721428658201,1.047,3521.1,3520.7,2.2761]
[1721428658889,1.047,3521.1,3520.8,2.55623]
[1721428659771,3.0,3521.3,3521.2,2.55594]
[1721428659986,2.2902,3522.1,3521.8,2.55547]
[1721428660193,1.047,3522.3,3521.8,2.55547]
[1721428660194,3.3372,3522.3,3521.8,2.55547]
[1721428660362,3.3372,3522.3,3521.9,2.61815788]
[1721428661383,1.047,3522.3,3521.9,0.06273788]
[1721428661708,1.047,3522.3,3522.1,2.55527]
[1721428661872,1.047,3522.3,3521.9,2.61810788]
[1721428662060,1.047,3522.3,3522.2,0.0625488]
[1721428662264,1.047,3522.3,3522.2,0.06252303]
[1721428662664,1.047,3522.3,3521.9,2.55537]
[1721428662868,1.047,3522.3,3522.0,2.61797973]
[1721428664503,1.047,3522.1,3522.0,0.06261973]
[1721428665002,1.047,3522.1,3522.0,2.61797973]
[1721428666103,1.047,3522.3,3522.0,2.61797973]
[1721428677420,1.047,3522.3,3522.1,2.55528]
[1721428677882,1.047,3522.3,3522.2,0.06242426]
[1721428691141,4.047,3522.5,3522.2,0.06242426]
[1721428696909,5.24154361,3522.5,3522.2,0.06242426]
[1721428698105,1.047,3522.3,3522.2,0.06242426]
[1721428698267,1.047,3522.3,3521.9,2.55543]
[1721428698473,1.047,3522.3,3522.2,0.06240566]
[1721428698673,1.047,3522.3,3522.0,2.55535]
[1721428698868,1.047,3522.3,3522.2,0.06240566]
[1721428699072,1.047,3522.3,3522.1,0.06245651]
[1721428699295,1.047,3522.3,3522.2,0.06240566]
[1721428700120,1.047,3522.3,3522.0,2.55535]
[1721428700314,1.047,3522.3,3522.2,0.06240566]
[1721428700479,1.047,3522.3,3522.1,0.06245651]
[1721428700682,1.047,3522.3,3522.2,0.06140566]
[1721428701379,1.047,3522.3,3522.0,2.55535]
[1721428701582,1.047,3522.3,3522.1,0.06145651]
[1721428706425,1.047,3522.3,3522.1,2.61673651]
[1721428708535,4.047,3522.5,3522.1,2.61673651]
[1721428710828,3.0,3522.5,3522.2,2.55521]
[1721428711025,3.0,3522.6,3522.4,2.55507]
[1721428711549,4.49208609,3522.7,3522.5,0.06124881]
[1721428715831,1.49208609,3522.7,3522.5,0.06124881]
[1721428722030,1.7894897,3523.3,3523.0,2.55461]
[1721428722390,2.08773799,3523.6,3523.1,0.0592006]
[1721428722391,0.44498956,3523.6,3523.1,0.0592006]
[1721428722668,1.047,3523.7,3523.3,2.55442]
[1721428723072,1.047,3523.7,3523.4,0.05904598]
[1721428723578,1.047,3523.7,3523.1,2.55455]
[1721428723739,1.047,3523.5,3523.1,2.55455]
[1721428729760,3.0,3523.7,3523.1,2.55455]
[1721428729968,1.047,3523.7,3523.2,0.255455]
[1721428730176,4.047,3523.7,3523.2,0.255455]
[1721428730378,1.047,3523.5,3523.1,2.55455]
[1721428734674,1.047,3523.5,3523.2,0.05447]
[1721428736505,1.047,3523.5,3523.1,2.55455]
[1721428736817,5.10884,3523.3,3523.2,0.05447]
[1721428737103,5.10884,3523.3,3521.8,5.04466]
[1721428737104,2.3047,3522.5,3521.9,2.55543]
[1721428737309,3.60215,3522.3,3521.5,5.04491]
[1721428737503,3.60215,3522.3,3522.2,0.05041848]
[1721428737708,3.60215,3522.3,3521.6,2.55564]
[1721428737709,2.55523,3522.2,3521.6,2.55564]
[1721428737893,1.047,3522.1,3521.6,2.55564]
[1721428738065,4.047,3522.1,3521.6,2.55564]
[1721428740422,4.047,3522.1,3521.1,2.55596]
[1721428740423,3.60244,3521.9,3521.1,2.55596]
[1721428740608,2.3047,3522.0,3521.0,2.55608]
[1721428740609,2.55571,3521.6,3521.0,2.55608]
[1721428740788,1.047,3521.7,3521.0,2.55608]
[1721428741722,4.86008,3522.0,3520.8,2.4892]
[1721428741929,3.0,3521.9,3521.3,2.5558]
[1721428742431,4.047,3521.9,3521.3,2.5558]
[1721428742830,4.047,3521.9,3521.1,2.55596]
[1721428742831,2.55556,3521.8,3521.1,2.55596]
[1721428743126,6.60243,3521.9,3521.0,2.55607]
[1721428743127,6.6026,3521.7,3521.0,2.55607]
[1721428743330,1.047,3521.7,3521.1,2.55601]
[1721428743530,3.60258,3521.7,3521.1,2.55601]
[1721428744894,1.047,3521.7,3521.2,2.55594]
[1721428745104,2.55552,3521.8,3521.2,2.55594]
[1721428745394,4.597,3521.7,3521.0,2.55604]
[1721428745599,7.15263,3521.7,3521.1,2.55601]
[1721428747023,4.597,3521.7,3521.1,2.55601]
[1721428747197,3.0,3521.7,3521.4,2.55576]
[1721428747523,2.3047,3522.0,3521.4,2.55576]
[1721428747524,7.86006,3522.0,3521.4,2.55576]
[1721428747725,0.55,3521.9,3521.4,2.55576]
[1721428747942,3.55,3521.9,3521.4,2.55576]
[1721428748239,6.10544,3521.9,3521.2,2.55589]
[1721428748440,1.047,3521.8,3521.2,2.55589]
[1721428749462,1.047,3521.8,3521.0,2.55606]
[1721428749648,1.047,3521.4,3521.3,0.051088]
[1721428749967,1.047,3521.4,3520.9,2.55615]
[1721428749968,3.3961,3521.4,3520.9,2.55615]
[1721428750123,3.3961,3521.4,3521.3,0.051088]
[1721428750325,1.047,3521.4,3520.9,2.55615]
[1721428750658,1.047,3521.4,3521.0,0.255615]
[1721428750852,1.047,3521.4,3521.1,0.05118976]
[1721428751428,1.047,3521.5,3521.1,0.05118976]
[1721428751921,1.047,3521.5,3521.1,2.60715976]
[1721428752555,2.3491,3521.7,3521.2,2.55594]
[1721428752753,1.047,3521.6,3521.2,3.09782248]
[1721428752954,1.047,3521.6,3521.3,2.606958]
[1721428753157,1.047,3521.6,3521.4,2.5558]
[1721428753543,1.047,3521.6,3521.5,0.05098625]
[1721428753746,3.0,3521.9,3521.5,2.60670625]
[1721428753963,1.047,3521.9,3521.6,2.55565]
[1721428754263,4.047,3521.9,3521.6,2.60658537]
[1721428754470,3.0,3521.9,3521.6,2.60658537]
[1721428754664,1.047,3521.9,3521.6,2.60658537]
[1721428754971,3.0,3522.1,3521.8,2.55551]
[1721428755166,1.047,3522.0,3521.8,2.55551]
[1721428755473,1.047,3522.0,3521.9,0.05079422]
[1721428760670,1.047,3522.1,3521.9,0.05079422]
[1721428761034,3.0,3522.2,3521.9,2.60622422]
[1721428761366,2.3005,3522.3,3521.9,3.1484635]
[1721428761569,1.047,3522.2,3522.0,2.55536]
[1721428761866,1.047,3522.2,3522.1,0.05063382]
[1721428763934,0.55,3522.3,3522.1,0.05063382]
[1721428764142,1.047,3522.3,3522.1,0.05063382]
[1721428769255,1.047,3522.3,3522.1,2.60592382]
[1721428772767,3.0,3522.5,3522.1,2.60592382]
[1721428772964,1.047,3522.6,3522.4,2.55506]
[1721428773170,2.4786,3523.2,3522.6,2.55492]
[1721428773392,1.047,3522.7,3522.6,2.55492]
[1721428774913,3.0,3523.1,3522.7,2.55485]
[1721428775120,1.047,3522.8,3522.7,2.55485]
[1721428775320,1.597,3522.8,3522.7,2.55485]
[1721428777588,0.55,3522.8,3522.7,2.55485]
[1721428777788,1.047,3522.8,3522.7,2.55485]
[1721428778113,1.597,3522.8,3522.7,2.55485]
[1721428779683,1.597,3522.8,3522.7,2.60372505]
[1721428781177,1.597,3522.8,3522.7,3.11959656]
[1721428781577,1.597,3522.8,3522.7,0.04887505]
[1721428781777,0.55,3522.8,3522.6,2.55491]
[1721428782022,1.047,3522.8,3522.7,0.04884788]
[1721428782193,1.597,3522.8,3522.7,0.04884788]
[1721428782983,3.0,3523.1,3522.8,2.55472]
[1721428783182,1.047,3522.9,3522.8,2.55472]
[1721428783604,0.55,3523.0,3522.8,2.55472]
[1721428783810,1.047,3522.9,3522.8,2.55472]
[1721428785025,1.047,3522.9,3522.1,2.3605]
[1721428785196,0.55,3523.0,3522.2,2.79122]
[1721428785519,1.047,3522.8,3522.7,2.55479]
[1721428787316,3.0,3523.1,3522.8,2.55477]
[1721428787613,1.047,3523.1,3522.8,2.55472]
[1721428787919,1.047,3523.1,3522.6,2.55489]
[1721428787920,1.047,3522.9,3522.6,2.55487]
[1721428788093,1.047,3522.9,3522.6,3.297297]
[1721428788300,1.047,3523.1,3522.9,2.55468]
[1721428790400,1.047,3523.1,3522.8,2.55476]
[1721428790585,1.047,3523.1,3522.8,2.55472]
[1721428791228,1.047,3522.9,3522.8,2.55472]
[1721428792611,1.597,3522.9,3522.2,2.79121]
[1721428792924,1.047,3522.7,3522.4,2.55507]
[1721428793527,1.047,3522.7,3522.2,2.79126]
[1721428793718,2.2693,3522.6,3522.2,2.79126]
[1721428793920,2.2693,3522.6,3522.3,2.55513]
[1721428794798,1.047,3522.7,3522.4,2.60360076]
[1721428798665,2.2693,3523.1,3522.4,0.58802784]
[1721428798819,1.047,3523.0,3522.7,2.5548]
[1721428799018,1.597,3523.0,3522.7,2.5548]
[1721428799487,1.597,3523.0,3522.8,0.04833523]
[1721428799657,0.55,3523.0,3522.8,0.04833523]
[1721428799865,0.55,3523.1,3522.9,0.0482844]
[1721428800161,0.55,3523.1,3522.9,2.55464]
[1721428800345,0.55,3523.1,3523.0,2.60287356]
[1721428810363,1.597,3523.3,3523.0,2.60287356]
[1721428810551,1.047,3523.1,3523.0,2.60287356]
[1721428810760,1.597,3523.1,3523.0,2.60287356]
[1721428814397,1.597,3523.1,3523.0,0.04823356]
[1721428814791,1.597,3523.1,3522.9,2.5547]
[1721428815001,1.597,3523.1,3523.0,0.04811346]
[1721428818500,1.497,3523.1,3523.0,0.04811346]
[1721428821277,3.9119,3523.1,3522.7,2.55485]
[1721428821481,1.047,3522.9,3522.8,0.04821799]
[1721428821714,1.047,3522.9,3522.7,2.55485]
[1721428821715,1.047,3522.9,3522.7,5.10965]
[1721428822042,1.047,3522.9,3522.8,2.60299799]
[1721428825088,4.0119,3523.1,3522.8,2.60299799]
[1721428825310,0.55,3523.0,3522.8,2.60299799]
[1721428825822,0.55,3523.0,3522.9,2.55471]
[1721428826124,3.55,3523.2,3523.0,2.55458]
[1721428826423,0.55,3523.2,3523.1,2.60262549]
[1721428826602,1.047,3523.6,3523.2,2.55444]
[1721428826776,5.37,3523.7,3523.3,2.5544]
[1721428826976,3.0,3523.6,3523.3,2.60236814]
[1721428827506,1.047,3523.5,3523.3,2.60236814]
[1721428828272,1.047,3523.5,3523.4,2.55435]
[1721428828576,1.597,3523.5,3523.4,3.11791954]
[1721428829395,1.597,3523.5,3523.4,2.60224373]
[1721428830416,1.597,3523.5,3523.4,0.04789373]
[1721428830573,0.55,3523.5,3523.4,0.04789373]
[1721428830778,1.047,3523.5,3523.3,2.55441]
[1721428831196,1.047,3523.5,3523.4,0.04789301]
[1721428831508,1.597,3523.5,3523.4,0.04789301]
[1721428832128,1.597,3523.5,3523.4,0.07710747]
[1721428833605,1.597,3523.5,3523.1,5.10905]
[1721428833819,1.597,3523.5,3523.2,2.55449]
[1721428834024,1.597,3523.5,3523.2,2.6316786]
[1721428837318,2.37,3523.9,3523.2,0.89495654]
[1721428837547,1.597,3523.8,3523.5,2.55422]
[1721428837855,1.597,3523.8,3523.6,0.07698201]
[1721428838139,1.597,3523.8,3523.5,2.55422]
[1721428838342,1.597,3523.8,3523.6,0.07698201]
[1721428838541,1.597,3523.8,3523.6,2.5542]
[1721428839037,1.597,3523.8,3523.7,0.07693037]
[1721428839343,0.55,3523.8,3523.7,0.07693037]
[1721428839504,0.55,3523.9,3523.7,0.07693037]
[1721428840542,2.37,3524.3,3523.7,3.14960741]
[1721428840739,3.417,3524.3,3523.7,3.14960741]
[1721428841245,3.417,3524.3,3523.9,2.55397]
[1721428841607,3.417,3524.3,3524.0,0.0767576]
[1721428842121,0.55,3524.2,3524.0,0.0767576]
[1721428844544,0.55,3524.2,3524.0,2.6306676]
[1721428844742,3.0,3524.7,3524.4,2.55358]
[1721428844946,0.55,3524.6,3524.4,2.55358]
[1721428845146,3.55,3524.6,3524.5,0.07648591]
[1721428845351,0.55,3524.6,3524.5,0.07648591]
[1721428846649,0.55,3524.6,3524.2,2.55371]
[1721428846851,1.047,3524.5,3524.2,2.55371]
[1721428847030,0.55,3524.4,3524.2,2.55371]
[1721428849664,0.55,3524.4,3524.1,2.55377]
[1721428849819,0.55,3524.4,3524.0,3.12423846]
[1721428850021,0.55,3524.4,3524.1,0.43390812]
[1721428850555,3.0,3524.7,3524.2,2.4565]
[1721428850727,1.047,3524.8,3524.5,2.55352]
[1721428851774,1.047,3524.8,3524.6,2.55346]
[1721428851975,1.047,3524.8,3524.4,2.55357]
[1721428852289,1.047,3524.8,3524.5,2.55354]
[1721428854789,1.047,3524.8,3524.6,0.07635929]
[1721428856136,1.047,3524.8,3524.4,0.79976481]
[1721428856338,1.047,3524.8,3524.5,0.0764109]
[1721428857655,3.60048,3524.6,3524.5,0.0764109]
[1721428857838,4.15048,3524.6,3523.8,5.01049]
[1721428858034,3.60048,3524.6,3524.5,0.07638017]
[1721428858291,4.15048,3524.6,3523.9,0.605749]
[1721428858438,3.60048,3524.6,3523.9,0.605749]
[1721428858783,0.55,3524.5,3524.0,0.07663828]
[1721428858979,0.55,3524.5,3524.0,2.63053828]
[1721428859157,0.55,3524.5,3524.1,0.82467773]
[1721428859361,1.047,3524.4,3524.2,0.07653502]
[1721428859566,2.9571,3524.3,3523.0,2.4565]
[1721428859766,2.9571,3524.3,3523.2,2.55446]
[1721428859767,1.047,3523.6,3523.2,2.55446]
[1721428859978,1.047,3523.6,3523.3,0.07455306]
[1721428860282,1.047,3523.6,3523.2,2.55446]
[1721428860458,1.047,3523.6,3523.4,0.07451697]
[1721428860662,1.047,3523.6,3523.3,0.07456862]
[1721428860861,1.047,3523.6,3523.5,0.07446532]
[1721428861171,1.597,3523.6,3523.5,0.07446532]
[1721428861372,1.597,3523.6,3523.2,2.55446]
[1721428861568,1.597,3523.6,3523.3,0.66002357]
[1721428861982,1.597,3523.6,3523.3,3.21443357]
[1721428862348,0.55,3523.6,3523.4,2.55434]
[1721428862559,0.55,3523.6,3523.5,0.07446532]
[1721428862748,0.55,3523.7,3523.5,0.07446532]
[1721428868888,1.047,3523.6,3523.5,0.07446532]
[1721428869086,1.597,3523.6,3523.5,0.07446532]
[1721428869263,1.597,3523.6,3523.3,2.55441]
[1721428869446,1.597,3523.6,3523.5,0.07447947]
[1721428869652,1.597,3523.6,3523.4,0.07453112]
[1721428869853,1.597,3523.6,3523.3,2.55441]
[1721428870271,1.597,3523.6,3523.4,0.07453112]
[1721428870775,1.597,3523.6,3523.3,2.55441]
[1721428870974,1.597,3523.6,3523.4,0.07453112]
[1721428871169,1.597,3523.6,3523.3,2.55441]
[1721428871387,1.597,3523.6,3523.4,0.07453112]
[1721428873496,4.96497,3523.5,3523.4,0.07453112]
[1721428873703,5.51497,3523.5,3523.4,0.07453112]
[1721428873860,5.51497,3523.5,3522.9,2.5547]
[1721428874260,5.51497,3523.5,3523.0,0.07478936]
[1721428875218,5.51497,3523.5,3523.0,2.62941936]
[1721428875500,2.55436,3523.4,3523.0,0.07478936]
[1721428875708,1.597,3523.3,3523.0,0.07478936]
[1721428875865,1.597,3523.3,3522.8,2.55472]
[1721428876199,1.597,3523.3,3522.9,1.249963]
[1721428876410,0.55,3523.3,3523.1,2.55455]
[1721428876701,2.4107,3523.8,3523.2,2.55449]
[1721428876906,0.55,3523.7,3523.4,2.5543]
[1721428877071,0.55,3523.8,3523.4,2.5543]
[1721428877282,5.55392,3524.0,3523.5,0.0745686]
[1721428877283,0.55,3523.9,3523.5,0.0745686]
[1721428879107,1.047,3523.7,3523.5,0.0745686]
[1721428879267,0.55,3523.6,3523.5,0.0745686]
[1721428879900,0.55,3523.6,3523.3,2.5544]
[1721428880059,0.55,3523.6,3523.5,0.0745686]
[1721428880264,0.55,3523.6,3523.4,0.07462025]
[1721428880468,0.55,3523.6,3523.5,0.0745686]
[1721428881210,0.55,3523.6,3523.4,2.55434]
[1721428881511,0.55,3523.6,3523.5,0.0745686]
[1721428885369,3.0,3524.0,3523.7,2.55413]
[1721428885572,0.55,3523.9,3523.8,0.07441368]
[1721428885885,2.3649,3524.4,3523.7,2.55413]
[1721428886093,2.3649,3524.4,3523.7,2.2872]
[1721428886296,2.3649,3524.4,3524.0,2.55387]
[1721428886501,2.3649,3524.4,3524.1,2.55381]
[1721428886706,1.047,3524.2,3524.1,0.07422482]
[1721428887075,1.047,3524.2,3523.8,0.22872]
[1721428887277,1.047,3524.2,3524.1,0.07422482]
[1721428887472,1.597,3524.2,3523.7,2.5541]
[1721428887702,1.597,3524.2,3524.1,0.07422482]
[1721428888232,1.597,3524.2,3523.9,2.55398]
[1721428888372,1.597,3524.2,3524.1,0.07422482]
[1721428888587,1.047,3524.2,3524.1,2.55384]
[1721428888828,1.047,3524.2,3524.1,2.62806482]
[1721428889000,1.047,3524.2,3524.1,3.1718103]
[1721428889386,3.4119,3524.4,3524.1,3.1718103]
[1721428889601,0.55,3524.3,3524.1,3.1718103]
[1721428895111,1.047,3524.2,3524.1,3.1718103]
[1721428895416,1.047,3524.2,3524.1,2.62806482]
[1721428896709,1.047,3524.2,3524.1,0.07422482]
[1721428897540,1.047,3524.2,3523.9,2.55392]
[1721428897705,0.55,3524.3,3524.1,0.07422482]
[1721428897898,0.55,3524.3,3524.0,0.07427645]
[1721428897899,1.047,3524.2,3524.0,0.07427645]
[1721428898227,1.047,3524.2,3523.9,2.55392]
[1721428898228,1.047,3524.1,3523.9,2.55392]
[1721428898437,1.047,3524.1,3523.7,2.55412]
[1721428898744,1.047,3523.8,3523.4,0.510883]
[1721428898899,1.047,3523.8,3523.4,3.065233]
[1721428899098,1.047,3523.8,3523.5,1.3009593]
[1721428899627,1.047,3523.8,3523.6,0.07442077]
[1721428900032,1.047,3523.8,3523.5,1.3009593]
[1721428900231,1.047,3523.8,3523.7,0.07436913]
[1721428900530,1.597,3523.8,3523.6,0.07442077]
[1721428900718,1.597,3523.8,3523.7,0.07436913]
[1721428901603,1.597,3523.8,3523.5,2.55427]
[1721428901920,1.597,3523.8,3523.6,0.07442077]
[1721428902439,1.597,3523.8,3523.7,0.07436913]
[1721428902790,1.597,3523.8,3523.5,2.55427]
[1721428903028,1.597,3523.8,3523.6,0.07442077]
[1721428903396,1.597,3523.8,3523.3,2.55436]
[1721428903626,1.597,3523.8,3523.4,3.13975306]
[1721428905194,1.597,3523.8,3523.4,0.07452406]
[1721428905396,0.55,3523.7,3523.2,2.55449]
[1721428905729,0.55,3523.7,3523.3,0.07459622]
[1721428906138,0.55,3523.7,3523.2,2.55449]
[1721428906296,0.55,3523.7,3523.4,0.07454457]
[1721428906498,0.55,3523.7,3523.4,2.55433]
[1721428906703,0.55,3523.7,3523.5,0.07449293]
[1721428907433,0.55,3523.7,3523.2,2.55444]
[1721428907738,0.55,3523.7,3523.3,3.065325]
[1721428908042,0.55,3523.7,3523.3,3.13992122]
[1721428909234,0.55,3523.7,3523.3,2.62901622]
[1721428913953,0.55,3523.7,3523.4,2.55434]
[1721428914154,1.047,3523.8,3523.7,2.55413]
[1721428914364,1.047,3524.0,3523.7,2.55413]
[1721428914535,1.047,3524.0,3523.7,2.62854934]
[1721428915631,1.047,3524.0,3523.7,0.07441934]
[1721428915830,1.047,3523.8,3523.7,0.07441934]
[1721428916063,1.047,3523.8,3523.5,2.5542]
[1721428916332,1.047,3523.8,3523.7,0.07441934]
[1721428916529,1.047,3523.8,3523.6,0.07447098]
[1721428916768,1.047,3523.8,3523.7,0.07441934]
[1721428917085,2.2785,3523.7,3523.1,2.55451]
[1721428917382,2.2785,3523.1,3522.7,2.55479]
[1721428918069,2.2785,3523.1,3522.3,2.5551]
[1721428918282,0.55,3523.0,3522.3,2.5551]
[1721428918630,1.047,3522.8,3522.3,2.5551]
[1721428918836,0.55,3522.7,3522.4,1.250039]
[1721428922556,0.55,3522.7,3522.3,2.5551]
[1721428922963,2.2785,3523.4,3522.9,2.5547]
[1721428923160,3.0,3523.3,3522.9,2.5547]
[1721428923361,2.2785,3523.4,3522.3,4.94553]
[1721428923558,2.2785,3523.4,3522.5,2.55494]
[1721428923559,5.2785,3523.4,3522.5,2.55494]
[1721428923759,3.0,3523.7,3522.6,0.59321104]
[1721428923959,9.7485,3523.8,3522.6,0.59321104]
[1721428924182,9.7485,3523.8,3523.3,2.55437]
[1721428924361,1.047,3523.7,3523.3,2.55437]
[1721428925261,0.55,3523.6,3523.3,2.55437]
[1721428925463,0.55,3523.6,3523.1,2.55453]
[1721428925664,1.047,3523.5,3523.2,2.55449]
[1721428926257,1.047,3523.5,3523.2,3.065392]
[1721428927405,1.047,3523.5,3523.2,2.55449]
[1721428929689,1.047,3523.5,3523.3,0.07164391]
[1721428930112,1.047,3523.5,3523.2,2.55449]
[1721428930386,1.047,3523.5,3523.0,2.55463]
[1721428930387,1.047,3523.5,3523.3,0.07164391]
[1721428930582,1.047,3523.5,3523.0,2.55463]
[1721428930813,1.047,3523.5,3523.1,0.07174721]
[1721428931010,1.047,3523.5,3523.0,2.55463]
[1721428931213,0.55,3523.6,3523.1,0.07174721]
[1721428931521,0.55,3523.6,3523.0,2.55463]
[1721428931726,1.047,3523.3,3523.2,0.07169556]
[1721428931926,1.047,3523.3,3523.1,0.07174721]
[1721428932220,1.047,3523.3,3523.2,0.07169556]
[1721428932415,1.047,3523.3,3523.0,2.55463]
[1721428932619,1.047,3523.3,3523.1,0.07174721]
[1721428932920,1.047,3523.3,3523.0,3.065568]
[1721428933221,1.047,3523.3,3523.1,0.07174721]
[1721428933422,1.047,3523.3,3523.0,3.065568]
[1721428933635,1.047,3523.3,3523.1,0.07174721]
[1721428934026,1.047,3523.3,3523.0,3.065568]
[1721428934200,1.047,3523.3,3523.2,0.07169556]
[1721428934381,1.047,3523.3,3523.0,3.065568]
[1721428934587,1.047,3523.3,3523.1,0.07174721]
[1721428934786,1.047,3523.3,3523.0,3.065568]
[1721428935000,1.047,3523.3,3523.1,0.07174721]
[1721428935338,1.047,3523.3,3523.0,3.065568]
[1721428935501,1.047,3523.3,3523.2,0.07169556]
[1721428935698,1.047,3523.3,3523.1,0.07174721]
[1721428935901,1.047,3523.3,3523.2,0.07169556]
[1721428936312,1.047,3523.4,3523.1,2.55456]
[1721428936540,1.597,3523.6,3523.2,2.62617556]
[1721428939139,1.597,3523.6,3523.2,0.07169556]
[1721428939654,1.597,3523.6,3523.2,2.62615556]
[1721428942248,1.047,3523.6,3523.4,2.55434]
[1721428942671,1.047,3523.6,3523.5,0.07153778]
[1721428947286,1.92955,3523.6,3523.5,0.07153778]